bitfinex/quotes_BTCUSD_20260307
["timestamp","ask_amount","ask_price","bid_price","bid_amount"]
[1772906997097,0.04353915,67615.0,67607.0,0.00136]
[1772906997311,0.04353915,67613.0,67607.0,0.00118937]
[1772906999523,0.07395136,67612.0,67607.0,0.00118937]
[1772907000103,0.11749051,67612.0,67607.0,0.00118937]
[1772907000705,0.07395136,67612.0,67607.0,0.00118937]
[1772907001274,0.11749051,67612.0,67607.0,0.00118937]
[1772907001500,0.07395136,67613.0,67607.0,0.00118937]
[1772907001706,0.0741684,67615.0,67607.0,0.00118937]
[1772907002591,0.00022001,67615.0,67608.0,0.0187753]
[1772907003096,0.00022001,67615.0,67608.0,0.01860465]
[1772907003468,0.00022001,67615.0,67607.0,0.07514539]
[1772907003638,0.00022001,67615.0,67608.0,0.0187753]
[1772907004463,0.0004,67625.0,67608.0,0.0187753]
[1772907004697,0.0004,67625.0,67611.0,0.0187753]
[1772907004891,0.0004,67625.0,67611.0,0.03045111]
[1772907005052,0.00022001,67615.0,67612.0,0.03033566]
[1772907005259,0.00022001,67622.0,67614.0,0.0187753]
[1772907005454,0.00022001,67622.0,67615.0,0.07394808]
[1772907005759,0.0002128,67626.0,67616.0,0.0187753]
[1772907007050,0.07393715,67625.0,67616.0,0.0187753]
[1772907007251,0.0002128,67626.0,67616.0,0.0187753]
[1772907007454,0.07414966,67626.0,67616.0,0.09220975]
[1772907007694,0.07414966,67626.0,67617.0,0.0201353]
[1772907007905,0.0002128,67626.0,67617.0,0.0201353]
[1772907008842,0.07415351,67629.0,67617.0,0.0201353]
[1772907008843,0.00022001,67630.0,67618.0,0.02963981]
[1772907009006,0.00022001,67630.0,67619.0,0.01878899]
[1772907009673,0.00022001,67630.0,67621.0,0.01878899]
[1772907011321,0.00022001,67630.0,67620.0,0.07394262]
[1772907011322,0.07393278,67629.0,67609.0,0.07395391]
[1772907011563,0.06026576,67628.0,67610.0,0.00136]
[1772907011778,0.07393496,67627.0,67610.0,0.07531283]
[1772907012014,0.01813884,67625.0,67610.0,0.07531283]
[1772907012253,0.04212692,67623.0,67610.0,0.07395283]
[1772907012477,0.04212692,67623.0,67611.0,0.00136]
[1772907012693,0.04212692,67623.0,67612.0,0.00136]
[1772907013359,0.04212692,67623.0,67612.0,0.02014899]
[1772907015174,0.04212692,67623.0,67613.0,0.07395027]
[1772907015401,0.07393717,67625.0,67614.0,0.01878899]
[1772907015593,0.04212692,67623.0,67607.0,0.00156]
[1772907015921,0.04212692,67623.0,67602.0,0.07396176]
[1772907015922,0.04212692,67619.0,67609.0,0.00136]
[1772907016145,0.00012045,67623.0,67610.0,0.02014899]
[1772907017397,0.00012045,67623.0,67611.0,0.07395246]
[1772907017648,0.00012045,67623.0,67612.0,0.01878899]
[1772907018637,0.00012045,67623.0,67612.0,0.01861838]
[1772907019060,0.07393447,67628.0,67612.0,0.01861838]
[1772907019311,0.00022001,67623.0,67612.0,0.01873883]
[1772907019473,0.04212692,67620.0,67612.0,0.00012045]
[1772907019845,0.04212692,67620.0,67613.0,0.00136]
[1772907020182,0.04212692,67620.0,67614.0,0.00136]
[1772907020887,0.04212692,67620.0,67615.0,0.00136]
[1772907021391,0.04212692,67620.0,67608.0,0.09274254]
[1772907021392,0.07394371,67619.0,67606.0,0.07395793]
[1772907021593,0.04212692,67616.0,67608.0,0.00136]
[1772907021771,0.04212692,67616.0,67609.0,0.00136]
[1772907022348,0.04212692,67616.0,67610.0,0.00136]
[1772907024298,0.00012045,67619.0,67610.0,0.00118937]
[1772907024503,0.00012045,67619.0,67611.0,0.01878899]
[1772907024723,0.07394513,67618.0,67610.0,0.00118937]
[1772907024925,0.04212692,67617.0,67610.0,0.00118937]
[1772907025493,0.00012045,67619.0,67611.0,0.01878899]
[1772907025692,0.07406429,67619.0,67611.0,0.01878899]
[1772907026513,0.00012045,67619.0,67611.0,0.01878899]
[1772907027090,0.00012045,67619.0,67612.0,0.01878899]
[1772907027910,0.00012045,67619.0,67612.0,0.01861842]
[1772907029324,0.00022001,67623.0,67613.0,0.01878899]
[1772907031284,0.04212692,67629.0,67614.0,0.09273817]
[1772907031639,0.01813884,67629.0,67615.0,0.01861838]
[1772907031849,0.04212692,67628.0,67616.0,0.00136]
[1772907032075,0.04212692,67628.0,67616.0,0.02014899]
[1772907032819,0.07414436,67637.0,67616.0,0.02014899]
[1772907033026,0.07414436,67637.0,67618.0,0.01878899]
[1772907033027,0.0458819,67636.0,67618.0,0.01878899]
[1772907033228,0.11980804,67636.0,67619.0,0.07394371]
[1772907033430,0.11980804,67636.0,67620.0,0.01878899]
[1772907033631,0.11980804,67636.0,67620.0,0.01861839]
[1772907034407,0.0458819,67634.0,67620.0,0.01910879]
[1772907034615,0.0458819,67633.0,67620.0,0.01910879]
[1772907034975,0.07413664,67644.0,67622.0,0.01878899]
[1772907035176,0.0458819,67641.0,67624.0,0.01878899]
[1772907035525,0.07425714,67644.0,67625.0,0.07393715]
[1772907035526,0.0458819,67638.0,67625.0,0.07393715]
[1772907035724,0.0458819,67638.0,67626.0,0.01878899]
[1772907036491,0.0458819,67638.0,67626.0,0.01890809]
[1772907037695,0.0458819,67638.0,67627.0,0.07393496]
[1772907037921,0.07392311,67638.0,67628.0,0.00136]
[1772907038117,0.07392311,67638.0,67620.0,0.07414285]
[1772907038118,0.01977206,67634.0,67620.0,0.07414302]
[1772907038322,0.0458819,67631.0,67620.0,0.0002007]
[1772907038497,0.0458819,67629.0,67620.0,0.07414329]
[1772907038696,0.0458819,67629.0,67621.0,0.00118939]
[1772907039098,0.0458819,67629.0,67622.0,0.00136]
[1772907041280,0.04610191,67629.0,67622.0,0.00136]
[1772907042258,0.12003553,67629.0,67622.0,0.00136]
[1772907042877,0.04610191,67629.0,67622.0,0.00136]
[1772907044284,0.00022001,67629.0,67622.0,0.0753003]
[1772907044648,0.07414545,67636.0,67623.0,0.01863747]
[1772907044855,0.07414524,67636.0,67623.0,0.01863747]
[1772907045597,0.07414524,67636.0,67624.0,0.07393824]
[1772907045794,0.01977206,67634.0,67622.0,0.0753003]
[1772907046000,0.0458819,67632.0,67622.0,0.0753003]
[1772907046435,0.02515563,67632.0,67622.0,0.0753003]
[1772907046625,0.07392397,67638.0,67622.0,0.0753003]
[1772907046626,0.03528529,67651.0,67625.0,0.0004]
[1772907046834,0.10919512,67651.0,67625.0,0.0005205]
[1772907047060,0.07390983,67651.0,67625.0,0.0005205]
[1772907047670,0.35492137,67659.0,67626.0,0.00136]
[1772907047895,0.03158949,67657.0,67626.0,0.00136]
[1772907048069,0.03158949,67655.0,67626.0,0.00136]
[1772907048272,0.00445252,67652.0,67626.0,0.00136]
[1772907048483,0.03294949,67651.0,67626.0,0.00136]
[1772907050006,0.07526983,67651.0,67626.0,0.00136]
[1772907051800,0.07430983,67650.0,67620.0,0.0002007]
[1772907051955,0.00344482,67648.0,67620.0,0.0002007]
[1772907052150,0.00344482,67646.0,67620.0,0.0002007]
[1772907052355,0.00344482,67643.0,67620.0,0.0002007]
[1772907052558,0.02542021,67640.0,67620.0,0.0002007]
[1772907052785,0.00344482,67638.0,67620.0,0.0002007]
[1772907053974,0.00529079,67636.0,67620.0,0.0002007]
[1772907054176,0.00529079,67636.0,67620.0,0.08397447]
[1772907054919,0.07528206,67639.0,67622.0,0.0244082]
[1772907055123,0.07528206,67639.0,67624.0,0.08377377]
[1772907055343,0.07528214,67639.0,67623.0,0.00136]
[1772907055497,0.00136,67639.0,67623.0,0.00136]
[1772907055698,0.07528267,67639.0,67624.0,0.05936557]
[1772907055899,0.07528267,67639.0,67625.0,0.08377377]
[1772907056340,0.00136,67639.0,67625.0,0.08377377]
[1772907056740,0.07392137,67640.0,67625.0,0.08377377]
[1772907057135,0.00618385,67648.0,67629.0,0.0244082]
[1772907057334,0.00136,67647.0,67631.0,0.08377377]
[1772907057503,0.00136,67647.0,67630.0,0.00136]
[1772907057504,0.00136,67646.0,67630.0,0.00136]
[1772907057712,0.00136,67646.0,67632.0,0.0244082]
[1772907057916,0.00482385,67648.0,67632.0,0.0244082]
[1772907058167,0.00603047,67647.0,67632.0,0.0244082]
[1772907058370,0.0752742,67646.0,67632.0,0.08377377]
[1772907058570,0.07391092,67649.0,67630.0,0.07529147]
[1772907058571,0.07527092,67649.0,67630.0,0.07529147]
[1772907058893,0.0005188,67650.0,67633.0,0.05936557]
[1772907059127,0.03983908,67648.0,67625.0,0.05936557]
[1772907059294,0.00451821,67645.0,67622.0,0.07394043]
[1772907059592,0.03983908,67645.0,67627.0,0.05936557]
[1772907059898,0.00451821,67644.0,67627.0,0.05936557]
[1772907060402,0.00451821,67644.0,67628.0,0.00136]
[1772907060583,0.00436706,67640.0,67629.0,0.00136]
[1772907061773,0.07391747,67643.0,67629.0,0.00136]
[1772907062163,0.00399356,67642.0,67629.0,0.00136]
[1772907063346,0.0779127,67642.0,67629.0,0.00136]
[1772907063495,0.00384651,67638.0,67627.0,0.00136]
[1772907064524,0.07392075,67640.0,67627.0,0.06295699]
[1772907065444,0.11764466,67640.0,67627.0,0.06295699]
[1772907065651,0.12220022,67640.0,67627.0,0.06295699]
[1772907065849,0.12120022,67640.0,67627.0,0.06295699]
[1772907066243,0.12220022,67640.0,67627.0,0.06295699]
[1772907066450,0.12120022,67640.0,67627.0,0.06295699]
[1772907066764,0.12220022,67640.0,67627.0,0.06295699]
[1772907066967,0.03932498,67639.0,67626.0,0.0002]
[1772907067169,0.00326875,67638.0,67626.0,0.0002]
[1772907067858,0.00326875,67638.0,67624.0,0.00136]
[1772907068534,0.00298668,67637.0,67623.0,0.00136]
[1772907069167,0.07392512,67636.0,67623.0,0.00136]
[1772907071173,0.07392512,67636.0,67628.0,0.00015]
[1772907072034,0.07492512,67636.0,67628.0,0.00015]
[1772907072450,0.07392512,67636.0,67628.0,0.00015]
[1772907072670,0.07492512,67636.0,67628.0,0.00015]
[1772907073051,0.07392512,67636.0,67628.0,0.00015]
[1772907073385,0.07492512,67636.0,67628.0,0.00015]
[1772907073589,0.07392512,67636.0,67628.0,0.00015]
[1772907073787,0.00136,67641.0,67628.0,0.00015]
[1772907073995,0.00236814,67647.0,67628.0,0.00015]
[1772907073996,0.07391557,67645.0,67628.0,0.00015]
[1772907074192,0.00136,67644.0,67630.0,0.0244082]
[1772907074391,0.00136,67644.0,67631.0,0.06159699]
[1772907074791,0.001,67636.0,67631.0,0.06159699]
[1772907075143,0.00136,67644.0,67631.0,0.06159699]
[1772907075351,0.07391747,67643.0,67631.0,0.06159699]
[1772907075650,0.07601599,67643.0,67628.0,0.00015]
[1772907075866,0.00209852,67642.0,67628.0,0.00015]
[1772907076084,0.001,67636.0,67628.0,0.00015]
[1772907076282,0.00209852,67642.0,67628.0,0.00015]
[1772907076463,0.00196511,67638.0,67623.0,0.00156]
[1772907077402,0.07392403,67637.0,67623.0,0.00156]
[1772907077765,0.00183262,67636.0,67623.0,0.0002]
[1772907078195,0.00170156,67635.0,67623.0,0.0002]
[1772907078725,0.07392403,67637.0,67623.0,0.06179699]
[1772907079275,0.00236,67636.0,67623.0,0.06179699]
[1772907079798,0.07392622,67635.0,67623.0,0.06179699]
[1772907081828,0.001,67635.0,67623.0,0.06179699]
[1772907082127,0.07528561,67636.0,67623.0,0.06179699]
[1772907082893,0.00105697,67635.0,67623.0,0.0002]
[1772907083099,0.00205697,67635.0,67623.0,0.0002]
[1772907083898,0.07392731,67634.0,67623.0,0.00156]
[1772907084100,0.07392731,67634.0,67623.0,0.06315699]
[1772907085127,0.07492731,67634.0,67623.0,0.06315699]
[1772907085459,0.07492731,67634.0,67623.0,0.09990736]
[1772907085670,0.07492731,67634.0,67624.0,0.06159699]
[1772907086723,0.0749275,67634.0,67624.0,0.06159699]
[1772907086921,0.07413884,67642.0,67625.0,0.06159699]
[1772907087161,0.00022001,67642.0,67628.0,0.0244082]
[1772907087426,0.00022001,67642.0,67632.0,0.06159699]
[1772907087662,0.00055679,67641.0,67629.0,0.00136]
[1772907088125,0.00043383,67639.0,67626.0,0.00136]
[1772907088449,0.00043383,67639.0,67626.0,0.06295699]
[1772907088654,0.00136,67640.0,67627.0,0.06159699]
[1772907088964,0.00136,67639.0,67627.0,0.08600519]
[1772907089592,0.00033255,67637.0,67623.0,0.0002]
[1772907090369,0.07392294,67638.0,67619.0,0.00595]
[1772907090370,0.03373424,67631.0,67619.0,0.00595]
[1772907090590,0.00021116,67629.0,67619.0,0.00595]
[1772907091658,0.07393387,67628.0,67619.0,0.00595]
[1772907092803,0.00136,67627.0,67619.0,0.00595]
[1772907093013,0.00136,67627.0,67616.0,0.0002]
[1772907093625,0.07393606,67626.0,67616.0,0.0002]
[1772907093806,0.1007739,67626.0,67612.0,0.0002]
[1772907094005,0.07393606,67626.0,67612.0,0.00032045]
[1772907094226,0.07393606,67626.0,67613.0,0.06532884]
[1772907094423,0.07393606,67626.0,67615.0,0.0243943]
[1772907094642,0.07393606,67626.0,67616.0,0.06532884]
[1772907095255,0.07393606,67626.0,67618.0,0.06532884]
[1772907095427,0.07393606,67626.0,67613.0,0.06532884]
[1772907095647,0.07393606,67626.0,67616.0,0.0243943]
[1772907096011,0.07529579,67627.0,67617.0,0.06532884]
[1772907096252,0.07393519,67627.0,67619.0,0.06532884]
[1772907096583,0.10012937,67643.0,67616.0,0.07394659]
[1772907096584,0.00136,67630.0,67623.0,0.06532884]
[1772907096805,0.00136,67630.0,67624.0,0.06532884]
[1772907097013,0.07392294,67638.0,67624.0,0.06532884]
[1772907097185,0.00136,67637.0,67624.0,0.06532884]
[1772907097351,0.07392294,67638.0,67625.0,0.02439346]
[1772907097703,0.07392294,67638.0,67627.0,0.0897223]
[1772907097911,0.07392294,67638.0,67623.0,0.07393907]
[1772907098111,0.00136,67637.0,67623.0,0.13926791]
[1772907099102,0.00136,67637.0,67623.0,0.16343801]
[1772907099265,0.00136,67637.0,67623.0,0.09810917]
[1772907099622,0.00136,67637.0,67624.0,0.06532884]
[1772907099997,0.07392622,67635.0,67624.0,0.06532884]
[1772907100551,0.07392622,67635.0,67624.0,0.13926682]
[1772907100723,0.07392622,67635.0,67625.0,0.06532884]
[1772907100929,0.00022001,67636.0,67627.0,0.06532884]
[1772907101157,0.07414569,67636.0,67624.0,0.07393798]
[1772907101311,0.07414569,67636.0,67624.0,0.06532884]
[1772907101512,0.07414569,67636.0,67624.0,0.02405449]
[1772907101757,0.07414569,67636.0,67625.0,0.0239169]
[1772907101916,0.07414569,67636.0,67626.0,0.06532884]
[1772907104014,0.07414569,67636.0,67627.0,0.06532884]
[1772907104222,0.07414569,67636.0,67628.0,0.06532884]
[1772907105888,0.07414569,67636.0,67623.0,0.07413862]
[1772907106084,0.07414569,67636.0,67625.0,0.09769404]
[1772907106278,0.07414569,67636.0,67626.0,0.06532884]
[1772907106459,0.07414569,67636.0,67627.0,0.06532884]
[1772907107236,0.07414569,67636.0,67627.0,0.08908629]
[1772907107455,0.07414569,67636.0,67628.0,0.06532884]
[1772907109568,0.00022001,67636.0,67628.0,0.06532884]
[1772907109782,0.00022001,67639.0,67628.0,0.06532884]
[1772907109783,0.00136,67637.0,67632.0,0.06532884]
[1772907109979,0.00136,67637.0,67632.0,0.02375745]
[1772907110184,0.07392294,67638.0,67632.0,0.08908629]
[1772907110388,0.00136,67637.0,67634.0,0.02375745]
[1772907110588,0.00136,67637.0,67634.0,0.06532884]
[1772907110789,0.00136,67637.0,67629.0,0.06532884]
[1772907111582,0.0752843,67637.0,67631.0,0.02375745]
[1772907111782,0.0752843,67637.0,67633.0,0.08908629]
[1772907111991,0.0752843,67637.0,67628.0,0.0976909]
[1772907112285,0.0752843,67637.0,67629.0,0.06532884]
[1772907117201,0.07550431,67637.0,67629.0,0.06532884]
[1772907117702,0.07550295,67639.0,67632.0,0.02375745]
[1772907117903,0.07392294,67638.0,67628.0,0.02375745]
[1772907118778,0.07392294,67638.0,67626.0,0.07393594]
[1772907119561,0.07392294,67638.0,67625.0,0.09769254]
[1772907120193,0.07400009,67638.0,67626.0,0.02375745]
[1772907120394,0.07320009,67638.0,67626.0,0.02375745]
[1772907122003,0.07320009,67638.0,67628.0,0.02308523]
[1772907123775,0.06513541,67637.0,67613.0,0.02296845]
[1772907123978,0.07392573,67636.0,67615.0,0.07394699]
[1772907124174,0.07392573,67636.0,67619.0,0.06507069]
[1772907124380,0.00136,67635.0,67622.0,0.02296845]
[1772907124577,0.00136,67635.0,67623.0,0.06507069]
[1772907124799,0.00136,67634.0,67628.0,0.0002]
[1772907125201,0.07392573,67636.0,67628.0,0.0002]
[1772907125406,0.00136,67633.0,67628.0,0.0002]
[1772907125798,0.02373593,67633.0,67628.0,0.0002]
[1772907127419,0.0752895,67632.0,67628.0,0.0002]
[1772907128501,0.02236836,67631.0,67628.0,0.0002]
[1772907128698,0.0739295,67632.0,67628.0,0.0002]
[1772907129025,0.0752895,67632.0,67616.0,0.0002]
[1772907129204,0.02236836,67627.0,67616.0,0.0002]
[1772907129403,0.02236836,67625.0,67616.0,0.0002]
[1772907131530,0.07393824,67624.0,67616.0,0.0002]
[1772907132448,0.02236836,67623.0,67616.0,0.0002]
[1772907133050,0.07529667,67626.0,67617.0,0.06507069]
[1772907133346,0.00136,67625.0,67619.0,0.02114413]
[1772907133553,0.07393594,67627.0,67618.0,0.16015899]
[1772907133854,0.00136,67624.0,67618.0,0.08621482]
[1772907134053,0.07529693,67626.0,67618.0,0.08621482]
[1772907135049,0.07393693,67626.0,67618.0,0.08621482]
[1772907135559,0.00136,67628.0,67618.0,0.08621482]
[1772907135764,0.02372836,67628.0,67616.0,0.0002]
[1772907135970,0.02236836,67628.0,67616.0,0.0002]
[1772907136169,0.02372836,67628.0,67616.0,0.0002]
[1772907136371,0.02236836,67626.0,67616.0,0.0002]
[1772907136578,0.02236836,67625.0,67616.0,0.0002]
[1772907137150,0.00136,67628.0,67616.0,0.09529082]
[1772907137571,0.07393496,67627.0,67616.0,0.09529082]
[1772907138097,0.02236836,67626.0,67616.0,0.0002]
[1772907139848,0.07393715,67625.0,67616.0,0.0002]
[1772907140001,0.09630551,67625.0,67616.0,0.0002]
[1772907140370,0.09615041,67625.0,67616.0,0.0002]
[1772907141137,0.06513541,67623.0,67614.0,0.0002]
[1772907141337,0.02372836,67622.0,67614.0,0.0002]
[1772907141752,0.00136,67622.0,67614.0,0.0002]
[1772907141959,0.07394152,67621.0,67614.0,0.0002]
[1772907142814,0.07394152,67621.0,67616.0,0.0002]
[1772907144443,0.04372291,67620.0,67600.0,0.00276]
[1772907144641,0.02236836,67619.0,67600.0,0.07672449]
[1772907144916,0.02236836,67619.0,67601.0,0.06507069]
[1772907145064,0.02236836,67619.0,67602.0,0.02114413]
[1772907145271,0.00136,67618.0,67602.0,0.02114413]
[1772907145468,0.02236836,67617.0,67602.0,0.02114413]
[1772907145643,0.02236836,67617.0,67602.0,0.08621482]
[1772907145843,0.00136,67616.0,67602.0,0.08621482]
[1772907146406,0.02236836,67614.0,67600.0,0.07672446]
[1772907146610,0.02236836,67614.0,67600.0,0.07684491]
[1772907147884,0.02236836,67614.0,67600.0,0.00288045]
[1772907148092,0.07530808,67615.0,67600.0,0.00152045]
[1772907148093,0.02236836,67609.0,67600.0,0.00152045]
[1772907148297,0.02236836,67607.0,67600.0,0.00152045]
[1772907150518,0.07531574,67608.0,67600.0,0.00152045]
[1772907150720,0.07531574,67608.0,67600.0,0.02266458]
[1772907151321,0.07531574,67608.0,67600.0,0.00152045]
[1772907151846,0.07395691,67607.0,67600.0,0.00152045]
[1772907153361,0.07415716,67626.0,67603.0,0.02114413]
[1772907153628,0.00136,67625.0,67607.0,0.02114413]
[1772907153922,0.00136,67625.0,67611.0,0.02114413]
[1772907154478,0.07393824,67624.0,67611.0,0.02114413]
[1772907154680,0.07393824,67624.0,67612.0,0.07395136]
[1772907154894,0.07393824,67624.0,67614.0,0.02114413]
[1772907155812,0.07393824,67624.0,67615.0,0.06201198]
[1772907156017,0.07402724,67625.0,67616.0,0.02114413]
[1772907156511,0.02236836,67624.0,67612.0,0.07395136]
[1772907156944,0.07393934,67623.0,67612.0,0.07395136]
[1772907158790,0.07402655,67625.0,67613.0,0.01994982]
[1772907159147,0.10813398,67630.0,67613.0,0.01994982]
[1772907159148,0.00022001,67639.0,67613.0,0.06201198]
[1772907159358,0.00022001,67639.0,67616.0,0.06201198]
[1772907159359,0.0742834,67633.0,67616.0,0.06201198]
[1772907159574,0.00022001,67631.0,67619.0,0.01994982]
[1772907159780,0.00022001,67631.0,67617.0,0.00136]
[1772907159984,0.02120316,67628.0,67612.0,0.00136]
[1772907160187,0.02120316,67626.0,67612.0,0.00136]
[1772907160332,0.02120316,67626.0,67613.0,0.001]
[1772907160536,0.02120316,67626.0,67607.0,0.0001349]
[1772907160841,0.06441107,67622.0,67608.0,0.07531481]
[1772907160998,0.02256316,67621.0,67608.0,0.00136]
[1772907161215,0.02120316,67620.0,67608.0,0.00136]
[1772907161510,0.02120316,67620.0,67607.0,0.0001349]
[1772907162110,0.02120316,67620.0,67601.0,0.06221198]
[1772907162111,0.06441107,67617.0,67601.0,0.0002]
[1772907162311,0.06441107,67615.0,67601.0,0.07343646]
[1772907162535,0.02256316,67614.0,67601.0,0.07343646]
[1772907163241,0.09515343,67613.0,67600.0,0.07548452]
[1772907166299,0.0739459,67617.0,67601.0,0.06201198]
[1772907166505,0.00136,67616.0,67601.0,0.06201198]
[1772907166633,0.0739459,67617.0,67601.0,0.06201198]
[1772907166840,0.00136,67617.0,67601.0,0.06201198]
[1772907168842,0.07394699,67616.0,67602.0,0.0739623]
[1772907169041,0.07394699,67616.0,67602.0,0.13597428]
[1772907169449,0.07394699,67616.0,67603.0,0.06201198]
[1772907169649,0.07394699,67616.0,67604.0,0.00136]
[1772907170023,0.07394699,67616.0,67604.0,0.06337198]
[1772907170220,0.07393942,67623.0,67604.0,0.06337198]
[1772907170647,0.00022001,67624.0,67604.0,0.06337198]
[1772907170850,0.07415829,67624.0,67606.0,0.06201198]
[1772907171926,0.07415829,67624.0,67607.0,0.00038384]
[1772907172193,0.07415829,67624.0,67605.0,0.07395902]
[1772907172194,0.07415829,67624.0,67608.0,0.06201198]
[1772907172383,0.07415829,67624.0,67610.0,0.06239582]
[1772907172568,0.07415829,67624.0,67611.0,0.06337198]
[1772907172890,0.07415829,67624.0,67612.0,0.13596334]
[1772907173054,0.00022001,67617.0,67613.0,0.06201198]
[1772907173393,0.00022001,67617.0,67613.0,0.06231859]
[1772907174161,0.00022001,67617.0,67613.0,0.06201198]
[1772907175366,0.00022001,67617.0,67614.0,0.07394918]
[1772907175985,0.00022001,67624.0,67615.0,0.06201198]
[1772907177223,0.07415876,67624.0,67615.0,0.06201198]
[1772907177429,0.07415876,67624.0,67615.0,0.13595921]
[1772907177733,0.00022001,67643.0,67615.0,0.07394723]
[1772907177954,0.00022001,67643.0,67616.0,0.06201198]
[1772907177955,0.07392989,67632.0,67616.0,0.06201198]
[1772907178148,0.07392989,67632.0,67618.0,0.06201198]
[1772907178528,0.07428438,67633.0,67618.0,0.06201198]
[1772907178849,0.07392973,67632.0,67618.0,0.06201198]
[1772907179052,0.07415082,67631.0,67618.0,0.06201198]
[1772907179410,0.02120316,67634.0,67619.0,0.07394371]
[1772907179629,0.02120316,67632.0,67619.0,0.07394371]
[1772907179833,0.00022001,67624.0,67619.0,0.07394371]
[1772907180158,0.00022001,67631.0,67619.0,0.07394371]
[1772907180981,0.00044051,67631.0,67619.0,0.07394371]
[1772907181956,0.00015,67628.0,67619.0,0.07394371]
[1772907182988,0.0003705,67628.0,67619.0,0.07394371]
[1772907184836,0.02161691,67628.0,67619.0,0.07394371]
[1772907184980,0.02161691,67628.0,67620.0,0.00136]
[1772907185733,0.02161691,67628.0,67621.0,0.00136]
[1772907185934,0.0003705,67628.0,67621.0,0.00136]
[1772907186950,0.0003705,67628.0,67622.0,0.07394043]
[1772907187412,0.0211715,67627.0,67622.0,0.07394043]
[1772907187618,0.0211715,67626.0,67622.0,0.07394043]
[1772907188126,0.021392,67626.0,67622.0,0.07394043]
[1772907188650,0.0002205,67626.0,67622.0,0.07394043]
[1772907189590,0.00136,67633.0,67622.0,0.07394043]
[1772907189741,0.02023576,67632.0,67622.0,0.07394043]
[1772907189942,0.02023576,67632.0,67619.0,0.0002]
[1772907190144,0.06378774,67629.0,67616.0,0.07394601]
[1772907190340,0.02023576,67626.0,67614.0,0.00136]
[1772907190540,0.08538168,67624.0,67615.0,0.07394808]
[1772907191203,0.02023576,67622.0,67612.0,0.07568772]
[1772907193444,0.0941767,67622.0,67612.0,0.07568772]
[1772907194778,0.07394094,67622.0,67612.0,0.0003765]
[1772907194893,0.07394094,67622.0,67605.0,0.07415887]
[1772907194894,0.06378774,67619.0,67605.0,0.07415887]
[1772907195092,0.0215901,67616.0,67605.0,0.07551887]
[1772907195300,0.0215901,67616.0,67605.0,0.0002]
[1772907195301,0.07394808,67615.0,67605.0,0.0002]
[1772907195651,0.0215901,67614.0,67605.0,0.07415838]
[1772907196009,0.0215901,67614.0,67605.0,0.07431788]
[1772907198014,0.09558912,67613.0,67605.0,0.07431788]
[1772907198859,0.02163885,67612.0,67605.0,0.07431788]
[1772907199928,0.0217219,67612.0,67605.0,0.07431788]
[1772907200559,0.09567328,67612.0,67605.0,0.07431788]
[1772907201160,0.0217219,67612.0,67605.0,0.07431788]
[1772907203541,0.09567336,67612.0,67605.0,0.07431788]
[1772907205001,0.0217219,67612.0,67605.0,0.07431788]
[1772907205182,8.305e-05,67612.0,67605.0,0.07431788]
[1772907210750,0.07416296,67620.0,67606.0,0.06076542]
[1772907210994,0.02196474,67619.0,67606.0,0.00012045]
[1772907211169,0.07394464,67619.0,67606.0,0.00012045]
[1772907211323,0.04860938,67619.0,67606.0,0.00027995]
[1772907211728,0.06884514,67619.0,67606.0,0.00027995]
[1772907212477,0.02023576,67618.0,67606.0,0.00027995]
[1772907213477,0.0739459,67617.0,67607.0,0.07395683]
[1772907213628,0.0739459,67617.0,67607.0,0.07531683]
[1772907213831,0.02219746,67615.0,67608.0,0.00136]
[1772907214270,0.02219746,67615.0,67608.0,0.0015195]
[1772907215721,0.09636654,67615.0,67608.0,0.0015195]
[1772907216954,0.09636654,67615.0,67608.0,0.07547504]
[1772907217120,0.00022001,67615.0,67608.0,0.07547504]
[1772907217545,0.07416817,67615.0,67608.0,0.07547504]
[1772907217714,0.07416817,67615.0,67606.0,0.00012045]
[1772907217916,0.07552817,67615.0,67602.0,0.0753223]
[1772907218117,0.0651627,67614.0,67602.0,0.07540535]
[1772907218360,0.02236627,67613.0,67602.0,0.07540535]
[1772907218652,0.02236627,67611.0,67602.0,0.07540535]
[1772907219289,0.02236627,67611.0,67602.0,0.07404535]
[1772907219433,0.02236627,67611.0,67602.0,0.07540535]
[1772907220275,0.02236627,67609.0,67602.0,8.305e-05]
[1772907221850,0.02236627,67609.0,67596.0,0.07396847]
[1772907222096,0.07395683,67607.0,67596.0,0.07396847]
[1772907222263,0.02236627,67606.0,67596.0,0.07532847]
[1772907222467,0.02236627,67606.0,67602.0,0.0002]
[1772907224399,0.09632529,67605.0,67602.0,0.0002]
[1772907224661,0.02236627,67604.0,67602.0,0.0002]
[1772907225904,0.14059969,67609.0,67602.0,0.0002]
[1772907225905,0.07395589,67608.0,67602.0,0.0002]
[1772907226402,0.07407571,67609.0,67602.0,0.0002]
[1772907227386,0.07392571,67609.0,67602.0,0.0002]
[1772907229373,0.02236627,67608.0,67602.0,0.0002]
[1772907230600,0.02236627,67606.0,67602.0,0.0002]
[1772907231167,0.07395669,67608.0,67602.0,0.0002]
[1772907231365,0.07395443,67610.0,67602.0,0.0002]
[1772907231568,0.07395443,67610.0,67602.0,0.00032045]
[1772907231949,0.07394755,67616.0,67604.0,0.00129763]
[1772907232148,0.07416815,67615.0,67604.0,0.00129763]
[1772907232471,0.02236627,67612.0,67605.0,0.00136]
[1772907233044,0.02236627,67612.0,67605.0,0.07531854]
[1772907235504,0.07394923,67614.0,67605.0,0.07531854]
[1772907235647,0.08036928,67615.0,67605.0,0.07531854]
[1772907236285,0.00642097,67615.0,67605.0,0.07531854]
[1772907236447,0.08036918,67615.0,67605.0,0.07551854]
[1772907236859,0.0803694,67615.0,67605.0,0.07551854]
[1772907237084,0.00642097,67615.0,67605.0,0.07551854]
[1772907237395,0.08036921,67615.0,67605.0,0.07551854]
[1772907239829,0.00642097,67615.0,67605.0,0.07551854]
[1772907240278,0.08036907,67615.0,67605.0,0.07551854]
[1772907240412,0.00022001,67619.0,67605.0,0.07551854]
[1772907240615,0.00022001,67619.0,67606.0,0.00230874]
[1772907241241,0.0743372,67625.0,67608.0,0.00233574]
[1772907241457,0.0743372,67625.0,67610.0,0.00233574]
[1772907241767,0.0743372,67625.0,67611.0,0.00136]
[1772907242116,0.02234853,67624.0,67611.0,0.00136]
[1772907242769,0.09628756,67624.0,67612.0,0.07395136]
[1772907243478,0.00022001,67615.0,67612.0,0.07395136]
[1772907243686,0.00022001,67622.0,67612.0,0.07395136]
[1772907244245,0.00022001,67622.0,67613.0,0.00251646]
[1772907244444,0.00022001,67622.0,67612.0,0.07395136]
[1772907246104,0.00022001,67628.0,67616.0,0.06884223]
[1772907246303,0.00022001,67628.0,67618.0,0.00256219]
[1772907246888,0.00037001,67628.0,67619.0,0.07394371]
[1772907248434,0.00022001,67633.0,67622.0,0.06884223]
[1772907248589,0.00022001,67633.0,67619.0,0.07394371]
[1772907248590,0.00022001,67633.0,67624.0,0.00262779]